[Event "1st SOA-GM Festival 2024"]
[Site "Bhubaneswar"]
[Date "2024.02.02"]
[Round "8.17"]
[White "Dere Pushkar"]
[Black "Daaevik Wadhawan"]
[Result "0-1"]
[ECO "B22"]
[WhiteElo "2191"]
[BlackElo "1997"]
[Annotator "RC"]
[PlyCount "144"]
[EventDate "2024.02.01"]
[EventType "swiss"]
[EventCountry "IND"]
[SourceTitle "playchess.com"]
[Source "ChessBase"]
[SourceQuality "1"]
[TimeControl "5400+30"]

1. e4 {[%emt 0:00:05]} c5 {[%emt 0:00:47]} 2. Nf3 {[%emt 0:00:05]} e6 {[%emt 0:00:05]} 3. c3 {[%emt 0:00:03]} d5 {[%emt 0:00:05]} 4. exd5 {[%emt 0:00:08]} Qxd5 {[%emt 0:00:22]} 5. d4 {[%emt 0:00:05]} Nf6 {[%emt 0:00:09]} 6. Na3 {[%emt 0:00:18]} a6 {[%emt 0:00:04]} 7. Nc4 {[%emt 0:00:58]} Nbd7 {[%emt 0:00:05]} 8. Be2 {[%emt 0:02:37]} b5 {[%emt 0:00:02]} 9. Ne3 {[%emt 0:03:39]} Qc6 {[%emt 0:00:02]} 10. a4 {[%emt 0:03:37]} Bb7 {[%emt 0:00:01]} 11. Ne5 {[%emt 0:01:16]} Nxe5 {[%emt 0:09:35]} 12. dxe5 {[%emt 0:00:06]} Rd8 {[%emt 0:12:51]} 13. Qc2 {[%emt 0:05:00]} Nd5 {[%emt 0:08:46]} 14. axb5 {[%emt 0:09:14]} axb5 {[%emt 0:03:32]} 15. Nxd5 {[%emt 0:00:31]} Rxd5 {[%emt 0:03:20]} 16. f4 {[%emt 0:11:24]} c4 {[%emt 0:01:46]} 17. Bf3 {[%emt 0:03:12]} Bc5 {[%emt 0:00:47]} 18. Qe2 {[%emt 0:03:53]} Qb6 {[%emt 0:02:09]} 19. Bxd5 {[%emt 0:00:15]} Bxd5 {[%emt 0:00:50]} 20. h4 {[%emt 0:00:59]} O-O {[%emt 0:08:58]} 21. Rh3 {[%emt 0:01:57]} f6 {[%emt 0:02:49]} 22. Be3 {[%emt 0:03:34]} fxe5 {[%emt 0:02:13]} 23. fxe5 {[%emt 0:01:53]} Be4 {[%emt 0:19:54]} 24. O-O-O {[%emt 0:17:25]} Bd3 {[%emt 0:02:47]} 25. Bxc5 {[%emt 0:00:39]} Qxc5 {[%emt 0:00:37]} 26. Qe3 {[%emt 0:06:23]} Qd5 {[%emt 0:01:58]} 27. Rf3 {[%emt 0:01:57]} Ra8 {[%emt 0:03:26]} 28. Qd4 {[%emt 0:01:08]} Qxd4 {[%emt 0:02:54]} 29. cxd4 {[%emt 0:00:24]} Be2 {[%emt 0:00:02]} 30. Kd2 {[%emt 0:07:52]} Bxd1 {[%emt 0:03:04]} 31. Kxd1 {[%emt 0:00:04]} Rd8 {[%emt 0:00:39]} 32. Rf4 {[%emt 0:00:13]} Rf8 {[%emt 0:00:19]} 33. Rg4 {[%emt 0:07:05]} Rf2 {[%emt 0:00:45]} 34. Kc1 {[%emt 0:00:07]} Kf7 {[%emt 0:00:56]} 35. h5 {[%emt 0:01:00]} b4 {[%emt 0:00:23]} 36. g3 {[%emt 0:00:32]} h6 {[%emt 0:01:34]} 37. Re4 {[%emt 0:03:30]} Rf5 {[%emt 0:03:41]} 38. Rh4 {[%emt 0:00:29]} Ke7 {[%emt 0:00:08]} 39. Kd2 {[%emt 0:01:34]} Rf2+ {[%emt 0:01:21]} 40. Kc1 {[%emt 0:00:08]} Kf7 {[%emt 0:03:43]} 41. Rg4 {[%emt 0:00:28]} Rf5 {[%emt 0:02:01]} 42. Rh4 {[%emt 0:00:06]} g5 {[%emt 0:00:57]} 43. hxg6+ {[%emt 0:01:20]} Kxg6 {[%emt 0:00:01]} 44. Rg4+ {[%emt 0:00:25]} Rg5 {[%emt 0:00:43]} 45. Rf4 {[%emt 0:00:05]} Rf5 {[%emt 0:00:01]} 46. Rg4+ {[%emt 0:00:04]} Kf7 {[%emt 0:00:25]} 47. Rh4 {[%emt 0:00:32]} h5 {[%emt 0:01:06]} 48. g4 {[%emt 0:00:11]} Rf4 {[%emt 0:00:52]} 49. Rxh5 {[%emt 0:00:08]} Rxg4 {[%emt 0:00:50]} 50. Rh7+ {[%emt 0:00:40]} Rg7 {[%emt 0:00:26]} 51. Rh6 {[%emt 0:00:26]} Ke7 {[%emt 0:00:29]} 52. d5 {[%emt 0:00:45]} Rg1+ {[%emt 0:00:17]} 53. Kd2 {[%emt 0:01:28]} Rg2+ {[%emt 0:00:06]} 54. Kc1 {[%emt 0:00:10]} exd5 {[%emt 0:00:06]} 55. Rd6 {[%emt 0:00:04]} b3 {[%emt 0:00:34]} 56. Rxd5 {[%emt 0:00:07]} Rc2+ {[%emt 0:00:26]} 57. Kb1 {[%emt 0:00:11]} Re2 {[%emt 0:00:46]} 58. Kc1 {[%emt 0:00:06]} Rc2+ {[%emt 0:00:58]} 59. Kb1 {[%emt 0:00:05]} Ke6 {[%emt 0:00:06]} 60. Rc5 {[%emt 0:01:14]} Kf5 {[%emt 0:00:07]} 61. Rb5 {[%emt 0:02:15]} Re2 {[%emt 0:01:23]} 62. Kc1 {[%emt 0:00:05]} Kf4 {[%emt 0:00:49]} 63. Rc5 {[%emt 0:00:53]} Ke3 {[%emt 0:00:17]} 64. Rd5 {[%emt 0:00:38]} Ke4 {[%emt 0:00:34]} 65. Rd2 {[%emt 0:00:23]} Re1+ {[%emt 0:00:36]} 66. Rd1 {[%emt 0:00:04]} Rxd1+ {[%emt 0:00:01]} 67. Kxd1 {[%emt 0:00:04]} Kxe5 {[%emt 0:00:06]} 68. Ke1 {[%emt 0:00:12]} Kd5 {[%emt 0:00:59]} 69. Kd1 {[%emt 0:00:09]} Kd4 {[%emt 0:00:05]} 70. Kd2 {[%emt 0:00:04]} c3+ {[%emt 0:00:23]} 71. bxc3+ {[%emt 0:00:13]} Kc4 {[%emt 0:00:01]} 72. Kd1 {[%emt 0:00:15]} Kd3 {[%emt 0:00:02]} 0-1

[Event "1st SOA-GM Festival 2024"]
[Site "Bhubaneswar"]
[Date "2024.02.02"]
[Round "8.18"]
[White "Nilssen, Ellen Fredericia"]
[Black "Kumar, Gaurav"]
[Result "1-0"]
[ECO "D35"]
[WhiteElo "2184"]
[BlackElo "1995"]
[Annotator "RC"]
[PlyCount "97"]
[EventDate "2024.02.01"]
[EventType "swiss"]
[EventCountry "IND"]
[SourceTitle "playchess.com"]
[Source "ChessBase"]
[SourceQuality "1"]
[TimeControl "5400+30"]

1. d4 {[%emt 0:00:07]} Nf6 {[%emt 0:00:07]} 2. c4 {[%emt 0:00:04]} e6 {[%emt 0:00:29]} 3. Nc3 d5 {[%emt 0:04:20]} 4. cxd5 {[%emt 0:00:28]} exd5 {[%emt 0:00:14]} 5. Bg5 {[%emt 0:00:05]} Be7 {[%emt 0:03:45]} 6. e3 {[%emt 0:00:32]} Nbd7 {[%emt 0:00:48]} 7. Bd3 {[%emt 0:00:09]} Nf8 {[%emt 0:04:30]} 8. Nge2 {[%emt 0:07:21]} Ne6 {[%emt 0:01:19]} 9. Bh4 {[%emt 0:01:15]} g6 {[%emt 0:02:18]} 10. O-O {[%emt 0:03:39]} Ng7 {[%emt 0:01:21]} 11. Rc1 {[%emt 0:06:09]} O-O {[%emt 0:01:35]} 12. Kh1 {[%emt 1:16:41]} c6 {[%emt 0:03:35]} 13. f3 {[%emt 0:00:00]} Bf5 {[%emt 0:08:07]} 14. Bf2 {[%emt 0:00:00]} Bxd3 {[%emt 0:01:20]} 15. Qxd3 {[%emt 0:00:00]} Qd7 {[%emt 0:00:35]} 16. Na4 {[%emt 0:00:00]} Rfe8 {[%emt 0:03:58]} 17. Nc5 {[%emt 0:00:00]} Bxc5 {[%emt 0:03:33]} 18. dxc5 {[%emt 0:00:00]} Qe7 {[%emt 0:57:36]} 19. Qb3 {[%emt 0:00:00]} Ne6 {[%emt 0:00:00]} 20. Qc3 {[%emt 0:00:00]} Nd7 {[%emt 0:00:00]} 21. b4 {[%emt 0:00:00]} Ng7 {[%emt 0:00:00]} 22. Nd4 {[%emt 0:00:00]} Ne5 {[%emt 0:00:00]} 23. Rfe1 {[%emt 0:00:00]} f5 {[%emt 0:00:00]} 24. Bg3 {[%emt 0:00:00]} Nh5 {[%emt 0:00:00]} 25. Bxe5 {[%emt 0:00:00]} Qxe5 {[%emt 0:00:00]} 26. b5 {[%emt 0:00:00]} Rac8 {[%emt 0:00:00]} 27. a4 {[%emt 0:00:00]} Qf6 {[%emt 0:00:00]} 28. g3 {[%emt 0:00:00]} Ng7 {[%emt 0:00:00]} 29. Qa5 {[%emt 0:00:00]} Re7 {[%emt 0:02:01]} 30. Qxa7 {[%emt 0:00:00]} Rce8 {[%emt 0:00:12]} 31. bxc6 {[%emt 0:00:00]} bxc6 {[%emt 0:00:08]} 32. Qb6 {[%emt 0:00:00]} Rxe3 {[%emt 0:00:25]} 33. Rxe3 {[%emt 0:00:00]} Rxe3 {[%emt 0:00:07]} 34. Nxc6 {[%emt 0:00:00]} Qe6 {[%emt 0:02:26]} 35. Nd4 {[%emt 0:00:00]} Re1+ {[%emt 0:02:38]} 36. Kg2 {[%emt 0:00:00]} Qe3 {[%emt 0:00:30]} 37. Rxe1 {[%emt 0:00:00]} Qxe1 {[%emt 0:00:09]} 38. c6 {[%emt 0:00:00]} Qd2+ {[%emt 0:00:21]} 39. Kf1 {[%emt 0:00:00]} Ne6 {[%emt 0:00:53]} 40. Nxe6 {[%emt 0:00:00]} Qd1+ {[%emt 0:00:21]} 41. Kg2 {[%emt 0:00:02]} Qe2+ {[%emt 0:00:08]} 42. Kh3 {[%emt 0:00:30]} Qxe6 {[%emt 0:00:19]} 43. Qd8+ {[%emt 0:00:13]} Kg7 {[%emt 0:01:13]} 44. c7 {[%emt 0:01:50]} f4+ {[%emt 0:00:26]} 45. g4 {[%emt 0:00:02]} Qe2 {[%emt 0:00:31]} 46. Qd7+ {[%emt 0:00:24]} Kf6 {[%emt 0:00:34]} 47. g5+ {[%emt 0:00:23]} Kxg5 {[%emt 0:00:16]} 48. Qg4+ {[%emt 0:00:05]} Kh6 {[%emt 0:00:02]} 49. c8=Q {[%emt 0:00:15]} 1-0

[Event "1st SOA-GM Festival 2024"]
[Site "Bhubaneswar"]
[Date "2024.02.02"]
[Round "8.19"]
[White "Jake Shanty"]
[Black "Aquino, Jethro Dino"]
[Result "0-1"]
[ECO "D04"]
[WhiteElo "1903"]
[BlackElo "2166"]
[Annotator "RC"]
[PlyCount "62"]
[EventDate "2024.02.01"]
[EventType "swiss"]
[EventCountry "IND"]
[SourceTitle "playchess.com"]
[Source "ChessBase"]
[SourceQuality "1"]
[TimeControl "5400+30"]

1. d4 {[%emt 0:00:05]} Nf6 {[%emt 0:00:09]} 2. Nf3 {[%emt 0:00:23]} g6 {[%emt 0:00:24]} 3. Nbd2 {[%emt 0:00:40]} d5 4. b3 {[%emt 0:00:43]} Bg7 {[%emt 0:00:39]} 5. Bb2 {[%emt 0:00:54]} O-O {[%emt 0:00:30]} 6. e3 {[%emt 0:00:54]} b6 {[%emt 0:01:29]} 7. c4 {[%emt 0:05:15]} e6 8. Be2 {[%emt 0:08:28]} Bb7 {[%emt 0:06:01]} 9. O-O {[%emt 0:02:32]} Nbd7 {[%emt 0:02:10]} 10. Rc1 {[%emt 0:07:07]} Nb8 {[%emt 0:00:00]} 11. Ra1 {[%emt 0:00:00]} Nbd7 {[%emt 0:01:00]} 12. Rc1 {[%emt 0:01:00]} Rc8 {[%emt 0:12:41]} 13. b4 {[%emt 0:07:52]} c5 {[%emt 0:00:30]} 14. bxc5 {[%emt 0:12:39]} bxc5 {[%emt 0:00:58]} 15. cxd5 {[%emt 0:01:07]} Bxd5 {[%emt 0:07:25]} 16. Bc4 {[%emt 0:10:27]} Ne4 {[%emt 0:09:59]} 17. Bxd5 {[%emt 0:21:26]} exd5 {[%emt 0:00:12]} 18. Nxe4 {[%emt 0:01:19]} dxe4 {[%emt 0:00:08]} 19. Nd2 {[%emt 0:00:04]} Re8 {[%emt 0:17:19]} 20. Nc4 {[%emt 0:01:32]} Nb6 {[%emt 0:00:23]} 21. dxc5 {[%emt 0:09:21]} Qxd1 {[%emt 0:06:37]} 22. Rfxd1 {[%emt 0:00:24]} Rxc5 {[%emt 0:00:13]} 23. Nxb6 {[%emt 0:02:55]} axb6 {[%emt 0:00:21]} 24. Bxg7 {[%emt 0:00:58]} Kxg7 {[%emt 0:00:03]} 25. Rb1 {[%emt 0:01:45]} Rc2 {[%emt 0:03:48]} 26. Rxb6 {[%emt 0:00:36]} Ra8 {[%emt 0:00:24]} 27. g3 {[%emt 0:02:11]} Raxa2 {[%emt 0:00:05]} 28. Rf1 {[%emt 0:00:07]} Re2 {[%emt 0:00:58]} 29. h3 {[%emt 0:00:55]} g5 {[%emt 0:02:07]} 30. Rbb1 {[%emt 0:00:56]} f5 {[%emt 0:01:45]} 31. Rbe1 {[%emt 0:00:28]} Red2 {[%emt 0:03:45]} 0-1

[Event "1st SOA-GM Festival 2024"]
[Site "Bhubaneswar"]
[Date "2024.02.02"]
[Round "8.20"]
[White "Dhananjay S"]
[Black "Nikhil Magizhnan"]
[Result "1-0"]
[ECO "A07"]
[WhiteElo "2151"]
[BlackElo "1994"]
[Annotator "RC"]
[PlyCount "80"]
[EventDate "2024.02.01"]
[EventType "swiss"]
[EventCountry "IND"]
[SourceTitle "playchess.com"]
[Source "ChessBase"]
[SourceQuality "1"]
[TimeControl "5400+30"]

1. Nf3 {[%emt 0:00:05]} Nf6 {[%emt 0:00:25]} 2. b3 {[%emt 0:00:03]} d5 {[%emt 0:01:14]} 3. Bb2 {[%emt 0:00:05]} Bf5 {[%emt 0:02:57]} 4. g3 {[%emt 0:00:08]} h6 {[%emt 0:02:22]} 5. Bg2 {[%emt 0:00:04]} e6 {[%emt 0:00:36]} 6. O-O {[%emt 0:00:04]} Be7 {[%emt 0:00:25]} 7. d3 {[%emt 0:00:04]} O-O {[%emt 0:00:44]} 8. Nbd2 {[%emt 0:00:03]} Nbd7 {[%emt 0:06:18]} 9. e3 {[%emt 0:01:43]} Bh7 {[%emt 0:07:31]} 10. Qe2 {[%emt 0:00:30]} c5 {[%emt 0:03:54]} 11. e4 {[%emt 0:00:58]} dxe4 {[%emt 0:02:25]} 12. dxe4 {[%emt 0:00:16]} Qc7 {[%emt 0:00:12]} 13. Ne1 {[%emt 0:15:21]} Nb6 {[%emt 0:10:51]} 14. c4 {[%emt 0:02:55]} Rfd8 {[%emt 0:12:46]} 15. e5 {[%emt 0:02:55]} Nfd7 {[%emt 0:02:01]} 16. f4 {[%emt 0:00:05]} Nf8 {[%emt 0:00:23]} 17. Be4 {[%emt 0:05:47]} Bf5 {[%emt 0:11:15]} 18. Bc3 {[%emt 0:02:10]} Nbd7 {[%emt 0:02:01]} 19. g4 {[%emt 0:02:09]} Bxe4 {[%emt 0:00:15]} 20. Nxe4 {[%emt 0:00:02]} f6 {[%emt 0:01:28]} 21. exf6 {[%emt 0:04:21]} Nxf6 {[%emt 0:00:18]} 22. Ng3 {[%emt 0:00:15]} Qd7 {[%emt 0:08:11]} 23. h4 {[%emt 0:02:39]} N6h7 {[%emt 0:01:47]} 24. g5 {[%emt 0:01:20]} hxg5 {[%emt 0:00:24]} 25. hxg5 {[%emt 0:00:06]} Ng6 {[%emt 0:02:52]} 26. Ng2 {[%emt 0:03:15]} Bf8 {[%emt 0:06:45]} 27. Rae1 {[%emt 0:02:23]} Re8 {[%emt 0:01:53]} 28. Qe4 {[%emt 0:05:11]} Qf7 {[%emt 0:01:15]} 29. Rd1 {[%emt 0:50:03]} Rad8 {[%emt 0:02:54]} 30. Rxd8 {[%emt 0:00:00]} Rxd8 {[%emt 0:00:03]} 31. Re1 {[%emt 0:00:00]} Rd6 {[%emt 0:01:32]} 32. f5 {[%emt 0:00:00]} exf5 {[%emt 0:00:27]} 33. Nxf5 {[%emt 0:00:00]} Ra6 {[%emt 0:02:12]} 34. Qg4 {[%emt 0:00:00]} Rxa2 {[%emt 0:02:51]} 35. Rf1 {[%emt 0:00:00]} Qe8 {[%emt 0:00:17]} 36. Re1 {[%emt 0:00:00]} Qf7 {[%emt 0:00:13]} 37. Nge3 {[%emt 0:00:00]} Ne7 {[%emt 0:00:56]} 38. Nd5 {[%emt 0:00:00]} Ng6 {[%emt 0:03:47]} 39. Rf1 {[%emt 0:00:00]} Qe8 {[%emt 0:00:03]} 40. Nde3 {[%emt 0:05:30]} Qd8 1-0

[Event "1st SOA-GM Festival 2024"]
[Site "Bhubaneswar"]
[Date "2024.02.03"]
[Round "9.1"]
[White "Savchenko, Boris"]
[Black "Das, Sayantan"]
[Result "0-1"]
[ECO "D52"]
[WhiteElo "2489"]
[BlackElo "2514"]
[Annotator "RC"]
[PlyCount "148"]
[EventDate "2024.02.01"]
[EventType "swiss"]
[EventCountry "IND"]
[SourceTitle "playchess.com"]
[Source "ChessBase"]
[SourceQuality "1"]
[TimeControl "5400+30"]

1. d4 {[%emt 0:01:00]} d5 {[%emt 0:00:29]} 2. c4 {[%emt 0:00:29]} e6 {[%emt 0:00:18]} 3. Nc3 {[%emt 0:00:11]} Nf6 {[%emt 0:00:56]} 4. Bg5 {[%emt 0:00:13]} Nbd7 {[%emt 0:03:59]} 5. e3 {[%emt 0:02:48]} c6 {[%emt 0:00:21]} 6. Nf3 {[%emt 0:02:10]} Qa5 {[%emt 0:00:38]} 7. cxd5 {[%emt 0:00:43]} Nxd5 {[%emt 0:06:18]} 8. Qd2 {[%emt 0:00:34]} Bb4 {[%emt 0:00:36]} 9. Rc1 {[%emt 0:00:08]} Nxc3 {[%emt 0:02:29]} 10. bxc3 {[%emt 0:00:23]} Ba3 {[%emt 0:00:04]} 11. Rb1 {[%emt 0:05:38]} b6 {[%emt 0:01:55]} 12. e4 {[%emt 0:13:34]} Ba6 {[%emt 0:09:48]} 13. Bd3 {[%emt 0:38:10]} O-O {[%emt 0:06:37]} 14. c4 {[%emt 0:12:47]} Qxd2+ {[%emt 0:06:33]} 15. Bxd2 {[%emt 0:02:11]} Rfe8 {[%emt 0:12:27]} 16. Ke2 {[%emt 0:00:13]} Bf8 {[%emt 0:01:34]} 17. Be3 {[%emt 0:03:22]} c5 {[%emt 0:03:15]} 18. d5 {[%emt 0:01:32]} f5 {[%emt 0:05:16]} 19. exf5 {[%emt 0:02:18]} exd5 {[%emt 0:00:42]} 20. cxd5 {[%emt 0:00:10]} Bxd3+ {[%emt 0:00:39]} 21. Kxd3 {[%emt 0:00:05]} Nf6 {[%emt 0:00:07]} 22. Kc4 {[%emt 0:07:42]} Re4+ {[%emt 0:01:10]} 23. Kb5 {[%emt 0:00:05]} Nxd5 {[%emt 0:01:05]} 24. Bd2 {[%emt 0:00:12]} Rc8 {[%emt 0:13:44]} 25. Rhe1 {[%emt 0:00:09]} Rxe1 {[%emt 0:00:14]} 26. Rxe1 {[%emt 0:00:06]} c4 {[%emt 0:00:25]} 27. Ka6 {[%emt 0:00:09]} Rc7 {[%emt 0:02:02]} 28. Re8 {[%emt 0:03:53]} c3 {[%emt 0:03:37]} 29. Bc1 {[%emt 0:00:03]} Rf7 {[%emt 0:01:00]} 30. Rc8 {[%emt 0:01:47]} Nb4+ {[%emt 0:01:02]} 31. Kb5 {[%emt 0:00:04]} Rxf5+ {[%emt 0:00:07]} 32. Kc4 {[%emt 0:01:21]} Nxa2 {[%emt 0:03:23]} 33. Be3 {[%emt 0:00:45]} c2 {[%emt 0:00:55]} 34. Kb3 {[%emt 0:00:21]} c1=Q {[%emt 0:00:49]} 35. Bxc1 {[%emt 0:00:03]} Nxc1+ {[%emt 0:00:04]} 36. Rxc1 {[%emt 0:00:05]} Bc5 {[%emt 0:00:23]} 37. Rc2 {[%emt 0:02:25]} a5 {[%emt 0:00:54]} 38. Ka4 {[%emt 0:00:06]} h6 {[%emt 0:00:59]} 39. h3 {[%emt 0:00:44]} Kf8 {[%emt 0:01:19]} 40. Re2 {[%emt 0:00:13]} Rf4+ {[%emt 0:04:04]} 41. Kb5 {[%emt 0:00:06]} Kg8 {[%emt 0:00:38]} 42. Ra2 {[%emt 0:00:09]} Re4 {[%emt 0:02:17]} 43. Kc6 {[%emt 0:00:49]} a4 {[%emt 0:02:46]} 44. Kd5 {[%emt 0:01:20]} Rb4 {[%emt 0:01:39]} 45. g3 {[%emt 0:01:06]} Bf8 {[%emt 0:02:25]} 46. Kc6 {[%emt 0:00:35]} b5 {[%emt 0:00:32]} 47. Kb6 {[%emt 0:00:30]} Be7 {[%emt 0:00:32]} 48. Ka5 {[%emt 0:00:31]} Bc5 {[%emt 0:00:31]} 49. Nd2 {[%emt 0:00:28]} Kh7 {[%emt 0:00:12]} 50. f3 {[%emt 0:00:15]} Be7 {[%emt 0:00:34]} 51. Kb6 {[%emt 0:00:10]} Bf6 {[%emt 0:00:36]} 52. Ne4 {[%emt 0:01:01]} Bd4+ {[%emt 0:00:37]} 53. Kc6 {[%emt 0:00:10]} Rb2 {[%emt 0:00:32]} 54. Ra3 {[%emt 0:00:04]} Bf6 {[%emt 0:00:47]} 55. Kd6 {[%emt 0:01:12]} Rc2 {[%emt 0:00:13]} 56. Nxf6+ {[%emt 0:00:41]} gxf6 {[%emt 0:00:02]} 57. g4 {[%emt 0:00:25]} Rb2 {[%emt 0:00:16]} 58. f4 {[%emt 0:00:22]} Rb3 {[%emt 0:00:09]} 59. Ra2 {[%emt 0:00:04]} a3 {[%emt 0:00:41]} 60. Ke6 {[%emt 0:01:02]} Kg6 {[%emt 0:00:57]} 61. f5+ {[%emt 0:00:36]} Kg5 {[%emt 0:00:22]} 62. h4+ {[%emt 0:00:08]} Kxg4 {[%emt 0:00:29]} 63. Kxf6 {[%emt 0:00:04]} b4 {[%emt 0:00:36]} 64. Kg6 {[%emt 0:00:26]} Rb2 {[%emt 0:00:07]} 65. Ra1 {[%emt 0:00:03]} a2 {[%emt 0:00:18]} 66. f6 {[%emt 0:01:34]} b3 {[%emt 0:00:21]} 67. Kxh6 {[%emt 0:00:46]} Rf2 {[%emt 0:01:08]} 68. Kg7 {[%emt 0:00:03]} Kxh4 {[%emt 0:00:44]} 69. f7 {[%emt 0:00:05]} Kg3 {[%emt 0:00:38]} 70. Rg1+ {[%emt 0:00:48]} Kh2 {[%emt 0:00:09]} 71. Rd1 {[%emt 0:00:34]} b2 {[%emt 0:01:11]} 72. Rd2 {[%emt 0:00:14]} Rxd2 {[%emt 0:00:07]} 73. f8=Q {[%emt 0:00:03]} Rg2+ {[%emt 0:00:15]} 74. Kh8 {[%emt 0:00:09]} a1=Q {[%emt 0:00:40]} 0-1

[Event "1st SOA-GM Festival 2024"]
[Site "Bhubaneswar"]
[Date "2024.02.03"]
[Round "9.2"]
[White "Soham Kamotra"]
[Black "Ghosh, Diptayan"]
[Result "0-1"]
[ECO "E20"]
[WhiteElo "2348"]
[BlackElo "2568"]
[Annotator "RC"]
[PlyCount "98"]
[EventDate "2024.02.01"]
[EventType "swiss"]
[EventCountry "IND"]
[SourceTitle "playchess.com"]
[Source "ChessBase"]
[SourceQuality "1"]
[TimeControl "5400+30"]

1. d4 {[%emt 0:00:03]} Nf6 {[%emt 0:00:32]} 2. c4 {[%emt 0:00:07]} e6 {[%emt 0:00:05]} 3. Nf3 {[%emt 0:00:04]} d5 {[%emt 0:00:11]} 4. g3 {[%emt 0:00:09]} Bb4+ {[%emt 0:01:41]} 5. Nc3 {[%emt 0:00:11]} O-O {[%emt 0:01:24]} 6. Bg2 {[%emt 0:00:06]} dxc4 {[%emt 0:00:38]} 7. O-O {[%emt 0:00:06]} Nc6 {[%emt 0:00:12]} 8. a3 {[%emt 0:02:04]} Be7 {[%emt 0:03:58]} 9. e4 {[%emt 0:00:27]} Na5 {[%emt 0:01:49]} 10. Be3 {[%emt 0:05:25]} c6 {[%emt 0:04:05]} 11. Qc2 {[%emt 0:06:45]} b5 {[%emt 0:01:18]} 12. Rad1 {[%emt 0:00:49]} Bb7 {[%emt 0:00:58]} 13. h3 {[%emt 0:04:58]} Nb3 {[%emt 0:06:39]} 14. g4 {[%emt 0:04:46]} a6 {[%emt 0:05:45]} 15. Kh1 {[%emt 0:07:01]} Qc7 {[%emt 0:04:30]} 16. e5 {[%emt 0:03:04]} Nd5 {[%emt 0:00:59]} 17. Nxd5 {[%emt 0:04:56]} exd5 {[%emt 0:03:07]} 18. Qf5 {[%emt 0:01:55]} Qc8 {[%emt 0:03:53]} 19. Qh5 {[%emt 0:00:30]} Qe6 {[%emt 0:00:30]} 20. Nh4 {[%emt 0:00:30]} Qg6 21. Nxg6 {[%emt 0:10:19]} hxg6 {[%emt 0:25:46]} 22. Bg5 {[%emt 0:00:30]} gxh5 {[%emt 0:00:06]} 23. Bxe7 {[%emt 0:00:04]} Rfe8 {[%emt 0:00:44]} 24. Bd6 {[%emt 0:02:13]} hxg4 {[%emt 0:00:18]} 25. hxg4 {[%emt 0:00:03]} Bc8 {[%emt 0:04:17]} 26. Bh3 {[%emt 0:01:19]} Na5 {[%emt 0:04:52]} 27. f4 {[%emt 0:01:32]} Nb7 {[%emt 0:00:04]} 28. Bb4 {[%emt 0:00:07]} a5 {[%emt 0:01:38]} 29. Be1 {[%emt 0:05:06]} c5 {[%emt 0:01:18]} 30. Kh2 {[%emt 0:00:22]} b4 {[%emt 0:06:22]} 31. Kg3 {[%emt 0:10:36]} cxd4 {[%emt 0:02:38]} 32. Rxd4 {[%emt 0:00:02]} Nc5 {[%emt 0:00:22]} 33. Bg2 {[%emt 0:07:07]} bxa3 {[%emt 0:01:18]} 34. bxa3 {[%emt 0:04:01]} Bb7 {[%emt 0:00:07]} 35. Bc3 {[%emt 0:01:08]} Nb3 {[%emt 0:00:46]} 36. Rxd5 {[%emt 0:01:53]} Bxd5 {[%emt 0:00:26]} 37. Bxd5 {[%emt 0:00:04]} Rad8 {[%emt 0:00:07]} 38. Rd1 {[%emt 0:19:08]} Nc5 {[%emt 0:05:40]} 39. Kf3 {[%emt 0:00:00]} Rd7 {[%emt 0:01:53]} 40. Bxa5 {[%emt 0:00:00]} Ra8 {[%emt 0:03:43]} 41. Bxa8 {[%emt 0:00:00]} Rxd1 {[%emt 0:00:02]} 42. Ke2 {[%emt 0:00:00]} Rd3 {[%emt 0:00:18]} 43. Bb4 {[%emt 0:00:00]} Ne6 {[%emt 0:00:09]} 44. Be4 {[%emt 0:00:00]} Nxf4+ {[%emt 0:00:17]} 45. Kf2 {[%emt 0:00:00]} Rb3 {[%emt 0:00:43]} 46. g5 {[%emt 0:00:00]} Nd3+ {[%emt 0:01:04]} 47. Bxd3 {[%emt 0:00:00]} Rxd3 {[%emt 0:00:02]} 48. Ke2 {[%emt 0:00:00]} Kh7 {[%emt 0:01:17]} 49. a4 {[%emt 0:00:00]} Rb3 {[%emt 0:00:04]} 0-1

[Event "1st SOA-GM Festival 2024"]
[Site "Bhubaneswar"]
[Date "2024.02.03"]
[Round "9.3"]
[White "Vignesh Advaith Vemula"]
[Black "Panda Sambit"]
[Result "1/2-1/2"]
[ECO "B12"]
[WhiteElo "2028"]
[BlackElo "2404"]
[Annotator "RC"]
[PlyCount "92"]
[EventDate "2024.02.01"]
[EventType "swiss"]
[EventCountry "IND"]
[SourceTitle "playchess.com"]
[Source "ChessBase"]
[SourceQuality "1"]
[TimeControl "5400+30"]

1. e4 {[%emt 0:00:02]} c6 {[%emt 0:00:57]} 2. d4 {[%emt 0:00:07]} d5 {[%emt 0:00:03]} 3. e5 {[%emt 0:00:21]} Bf5 {[%emt 0:00:06]} 4. h4 {[%emt 0:00:07]} h5 {[%emt 0:03:41]} 5. Bd3 {[%emt 0:00:05]} Bxd3 {[%emt 0:00:04]} 6. Qxd3 {[%emt 0:00:05]} Qa5+ {[%emt 0:00:03]} 7. Nd2 {[%emt 0:00:07]} e6 {[%emt 0:00:04]} 8. Ngf3 {[%emt 0:00:05]} Nh6 {[%emt 0:01:00]} 9. O-O {[%emt 0:00:06]} Nf5 {[%emt 0:00:05]} 10. Nb3 {[%emt 0:00:05]} Qa6 {[%emt 0:00:03]} 11. Qd1 {[%emt 0:00:05]} b6 {[%emt 0:00:11]} 12. Bg5 {[%emt 0:00:07]} c5 {[%emt 0:00:03]} 13. dxc5 {[%emt 0:00:05]} Bxc5 {[%emt 0:00:03]} 14. Re1 {[%emt 0:00:11]} Nc6 {[%emt 0:08:46]} 15. Nxc5 {[%emt 0:00:05]} bxc5 {[%emt 0:00:04]} 16. c3 {[%emt 0:00:05]} Rc8 {[%emt 0:03:01]} 17. b3 {[%emt 0:15:59]} Rc7 {[%emt 0:02:49]} 18. Qd2 {[%emt 0:03:28]} Rd7 {[%emt 0:00:20]} 19. Rad1 {[%emt 0:00:06]} Qb7 {[%emt 0:07:46]} 20. Be3 {[%emt 0:09:10]} d4 {[%emt 0:20:28]} 21. cxd4 {[%emt 0:00:35]} Ncxd4 {[%emt 0:12:40]} 22. Bxd4 {[%emt 0:11:34]} cxd4 {[%emt 0:01:04]} 23. Qe2 {[%emt 0:08:18]} O-O {[%emt 0:04:32]} 24. Rd3 {[%emt 0:00:11]} Rc8 {[%emt 0:04:50]} 25. Qd2 {[%emt 0:11:35]} Rc5 {[%emt 0:04:47]} 26. g3 {[%emt 0:00:47]} a5 {[%emt 0:03:45]} 27. Rd1 {[%emt 0:04:39]} Qe4 {[%emt 0:06:30]} 28. Qe1 {[%emt 0:05:18]} Qxe1+ {[%emt 0:06:12]} 29. Rxe1 {[%emt 0:00:09]} Kf8 {[%emt 0:00:56]} 30. Red1 {[%emt 0:00:39]} Rcd5 {[%emt 0:00:31]} 31. Rc1 {[%emt 0:01:10]} f6 {[%emt 0:00:43]} 32. Rc6 {[%emt 0:03:08]} Kf7 {[%emt 0:01:21]} 33. a3 {[%emt 0:05:09]} Ke7 {[%emt 0:01:07]} 34. exf6+ {[%emt 0:01:24]} gxf6 {[%emt 0:00:09]} 35. Nd2 {[%emt 0:00:06]} e5 {[%emt 0:04:49]} 36. Ne4 {[%emt 0:00:31]} Rb5 {[%emt 0:04:01]} 37. Rf3 {[%emt 0:07:10]} Nd6 {[%emt 0:00:32]} 38. Nxf6 {[%emt 0:00:11]} e4 {[%emt 0:00:49]} 39. Rf4 {[%emt 0:00:37]} d3 {[%emt 0:00:32]} 40. Nxe4 {[%emt 0:00:27]} Rxb3 {[%emt 0:00:30]} 41. Kg2 {[%emt 0:02:36]} Nf7 {[%emt 0:00:30]} 42. Nc5 {[%emt 0:00:47]} d2 {[%emt 0:00:24]} 43. Re4+ {[%emt 0:00:17]} Kd8 {[%emt 0:00:28]} 44. Ne6+ {[%emt 0:01:08]} Ke7 {[%emt 0:00:20]} 45. Nc5+ {[%emt 0:00:49]} Kd8 {[%emt 0:00:25]} 46. Ne6+ {[%emt 0:00:44]} Ke7 {[%emt 0:00:40]} 1/2-1/2